Workbook

Sheet Sheet1
A1: Notes
A2: The first step in financial modelling is the recording and reconciliation of the company reported historical data in the company reported format
A3: The recording of raw data and ensuring that all reported data balances and reconciles with each other is important since this would give us the historical trends based on which we will be forecasting the future earnings
A4: This recording process also helps us gauge the revenue and cost drivers of the company based on which we will be able to create assumptions to forecast the company earnings
A5: These do not reflect the company's pure/organic growth from operations, therefore companies generally report the notional adjustments made to their accounts and the Adjusted/pure earnings figures.
A6: As we cannot forecast such notional adjustments which are the discretion of the management, therefore, we separate out and forecast organic growth based on its historical trend.
A7: Instructions
A8: Complete all relevant data in the Historical tab following the format of the examples
A9: If there are new line items mentioned in the older reports, feel free to insert new rows for them, however ensure that these rows are taken in to account for the formulas
A10: Ensure all checks are balanced and any differences are reconciled
A11: You are required to record all segmental breakdowns following the example
A12: The requred annual reports and earnings releases can be found in:
A13: https://investors.nike.com/Home/default.aspx
A14: Submssion time is 3 days from the day the task was given to you

Sheet Historicals
A1: NIKE, INC. (Dollars and Shares in Millions Except Per Share Amounts) | B1: =+C1-1 -> 2015 | C1: 2016 | D1: 2017 | E1: 2018 | F1: 2019 | G1: 2020 | H1: =+I1-1 -> 2021 | I1: 2022
A2: Revenues | B2: 30601 | C2: 32376 | D2: 34350 | E2: 36397 | F2: 39117 | G2: 37403 | H2: 44538 | I2: 46710
A3: Cost of sales | B3: 16534 | C3: 17405 | D3: 19038 | E3: 20441 | F3: 21643 | G3: 21162 | H3: 24576 | I3: 25231
A4: Gross profit | B4: =B2-B3 -> 14067 | C4: =C2-C3 -> 14971 | D4: 15312 | E4: 15956 | F4: 17474 | G4: 16241 | H4: 19962 | I4: 21479
A5: Demand creation expense | B5: 3213 | C5: 3278 | D5: 3341 | E5: 3577 | F5: 3753 | G5: 3592 | H5: 3114 | I5: 3850
A6: Operating overhead expense | B6: 6679 | C6: 7191 | D6: 7222 | E6: 7934 | F6: 8949 | G6: 9534 | H6: 9911 | I6: 10954
A7: Total selling and administrative expense | B7: 9892 | C7: 10469 | D7: 10563 | E7: 11511 | F7: 12702 | G7: 13126 | H7: 13025 | I7: 14804
A8: Interest expense (income), net | B8: 28 | C8: 19 | D8: 59 | E8: 54 | F8: 49 | G8: 89 | H8: 262 | I8: 205
A9: Other (income) expense, net | B9: -58 | C9: -140 | D9: -196 | E9: 66 | F9: -78 | G9: 139 | H9: 14 | I9: -181
A10: Income before income taxes | B10: =B4-B7-B8-B9 -> 4205 | C10: =C4-C7-C8-C9 -> 4623 | D10: 4886 | E10: =E4-E7-E8-E9 -> 4325 | F10: 4801 | G10: 2887 | H10: 6661 | I10: 6651
A11: Income tax expense | B11: 932 | C11: 863 | D11: 646 | E11: 2392 | F11: 772 | G11: 348 | H11: 934 | I11: 605
A12: NET INCOME | B12: 3273 | C12: 3760 | D12: 4240 | E12: 1933 | F12: 4029 | G12: 2539 | H12: 5727 | I12: 6046
A13: Net earnings per share:
A14: Basic | B14: 1.9 | C14: 2.21 | D14: 2.56 | E14: 1.19 | F14: 2.55 | G14: 1.63 | H14: 3.64 | I14: 3.83
A15: Diluted | B15: 1.85 | C15: 2.16 | D15: 2.51 | E15: 1.17 | F15: 2.49 | G15: 1.6 | H15: 3.56 | I15: 3.75
A16: Average shares outstanding:
A17: Basic | B17: 1723.5 | C17: 1697.9 | D17: 1657.8 | E17: 1623.8 | F17: 1579.7 | G17: 1558.8 | H17: 1573 | I17: 1578.8
A18: Diluted | B18: 1768.8 | C18: 1742.5 | D18: 1692 | E18: 1659.1 | F18: 1618.4 | G18: 1591.6 | H18: 1609.4 | I18: 1610.8
A20: Check (Reported diluted EPS-(Net income/diluted no. of shares) | B20: =+ROUND(((B12/B18)-B15),2) -> 0 | C20: 0 | D20: 0 | E20: 0 | F20: 0 | G20: 0 | H20: 0 | I20: =+ROUND(((I12/I18)-I15),2) -> 0
A22: CONSOLIDATED BALANCE SHEETS
A23: ASSETS
A24: Current assets:
A25: Cash and equivalents | B25: 3852 | C25: 3138 | D25: 3808 | E25: 4249 | F25: 4466 | G25: 8348 | H25: 9889 | I25: 8574
A26: Short-term investments | B26: 2072 | C26: 2319 | D26: 2371 | E26: 996 | F26: 197 | G26: 439 | H26: 3587 | I26: 4423
A27: Accounts receivable, net | B27: 3358 | C27: 3241 | D27: 3677 | E27: 3498 | F27: 4272 | G27: 2749 | H27: 4463 | I27: 4667
A28: Inventories | B28: 4337 | C28: 4838 | D28: 5055 | E28: 5261 | F28: 5622 | G28: 7367 | H28: 6854 | I28: 8420
A29: Deferred income taxes | B29: 389 | C29: 0 | D29: 0 | E29: 0 | F29: 0 | G29: 0 | H29: 0 | I29: 0
A30: Prepaid expenses and other current assets | B30: 1968 | C30: 1489 | D30: 1150 | E30: 1130 | F30: 1968 | G30: 1653 | H30: 1498 | I30: 2129
A31: Total current assets | B31: =+SUM(B25:B30) -> 15976 | C31: 15025 | D31: 16061 | E31: 15134 | F31: 16525 | G31: 20556 | H31: 26291 | I31: =+SUM(I25:I30) -> 28213
A32: Property, plant and equipment, net | B32: 3011 | C32: 3520 | D32: 3989 | E32: 4454 | F32: 4744 | G32: 4866 | H32: 4904 | I32: 4791
A33: Operating lease right-of-use assets, net | B33: 0 | C33: 0 | D33: 0 | E33: 0 | F33: 0 | G33: 3097 | H33: 3113 | I33: 2926
A34: Identifiable intangible assets, net | B34: 281 | C34: 281 | D34: 283 | E34: 285 | F34: 283 | G34: 274 | H34: 269 | I34: 286
A35: Goodwill | B35: 131 | C35: 131 | D35: 139 | E35: 154 | F35: 154 | G35: 223 | H35: 242 | I35: 284
A36: Deferred income taxes and other assets | B36: 2201 | C36: 2422 | D36: 2787 | E36: 2509 | F36: 2011 | G36: 2326 | H36: 2921 | I36: 3821
A37: TOTAL ASSETS | B37: =+SUM(B31:B36) -> 21600 | C37: =C31+C32+C33+C34+C35+C36 -> 21379 | D37: =+SUM(D31:D36) -> 23259 | E37: 22536 | F37: 23717 | G37: 31342 | H37: 37740 | I37: =+SUM(I31:I36) -> 40321
A38: LIABILITIES AND SHAREHOLDERS' EQUITY
A39: Current liabilities:
A40: Current portion of long-term debt | B40: 107 | C40: 44 | D40: 6 | E40: 6 | F40: 6 | G40: 3 | H40: 0 | I40: 500
A41: Notes payable | B41: 74 | C41: 1 | D41: 325 | E41: 336 | F41: 9 | G41: 248 | H41: 2 | I41: 10
A42: Accounts payable | B42: 2131 | C42: 2191 | D42: 2048 | E42: 2279 | F42: 2612 | G42: 2248 | H42: 2836 | I42: 3358
A43: Current portion of operating lease liabilities | B43: 0 | C43: 0 | D43: 0 | E43: 0 | F43: 0 | G43: 445 | H43: 467 | I43: 420
A44: Accrued liabilities | B44: 3951 | C44: 3037 | D44: 3011 | E44: 3269 | F44: 5010 | G44: 5184 | H44: 6063 | I44: 6220
A45: Income taxes payable | B45: 71 | C45: 85 | D45: 84 | E45: 150 | F45: 229 | G45: 156 | H45: 306 | I45: 222
A46: Total current liabilities | B46: =+SUM(B40:B45) -> 6334 | C46: =SUM(C40:C45) -> 5358 | D46: 5474 | E46: 6040 | F46: 7866 | G46: 8284 | H46: 9674 | I46: =+SUM(I40:I45) -> 10730
A47: Long-term debt | B47: 1079 | C47: 1993 | D47: 3471 | E47: 3468 | F47: 3464 | G47: 9406 | H47: 9413 | I47: 8920
A48: Operating lease liabilities | B48: 0 | C48: 0 | D48: 0 | E48: 0 | F48: 0 | G48: 2913 | H48: 2931 | I48: 2777
A49: Deferred income taxes and other liabilities | B49: 1480 | C49: 1770 | D49: 1907 | E49: 3216 | F49: 3347 | G49: 2684 | H49: 2955 | I49: 2613
A50: Commitments and contingencies (Note 18)
A51: Redeemable preferred stock | F51: — | G51: — | H51: 0 | I51: 0
A52: Shareholders' equity:
A53: Common stock at stated value:
A54: Class A convertible — 305 and 305 shares outstanding | F54: — | G54: —
A55: Class B — 1,266 and 1,273 shares outstanding | B55: 3 | C55: 3 | D55: 3 | E55: 3 | F55: 3 | G55: 3 | H55: 3 | I55: 3
A56: Capital in excess of stated value | B56: 6773 | C56: 7786 | D56: 8638 | E56: 6384 | F56: 7163 | G56: 8299 | H56: 9965 | I56: 11484
A57: Accumulated other comprehensive income (loss) | B57: 1246 | C57: 318 | D57: -213 | E57: -92 | F57: 231 | G57: -56 | H57: -380 | I57: 318
A58: Retained earnings (deficit) | B58: 4685 | C58: 4151 | D58: 3979 | E58: 3517 | F58: 1643 | G58: -191 | H58: 3179 | I58: 3476
A59: Total shareholders' equity | B59: =+SUM(B54:B58) -> 12707 | C59: 12258 | D59: 12407 | E59: 9812 | F59: 9040 | G59: 8055 | H59: 12767 | I59: 15281
A60: TOTAL LIABILITIES AND SHAREHOLDERS' EQUITY | B60: =+SUM(B46:B51)+B59 -> 21600 | C60: 21379 | D60: 23259 | E60: 22536 | F60: 23717 | G60: 31342 | H60: 37740 | I60: 40321
A61: Check (total assets - total labilities and equity) | B61: =+B60-B37 -> 0 | C61: =+C60-C37 -> 0 | D61: =+D60-D37 -> 0 | E61: 0 | F61: 0 | G61: 0 | H61: 0 | I61: =+I60-I37 -> 0
A62: CONSOLIDATED STATEMENTS OF CASH FLOWS
A63: (Link Net income figures from income statement)
A64: Cash provided (used) by operations:
A65: Net income | B65: =B12 -> 3273 | C65: 3760 | D65: =D12 -> 4240 | E65: 1933 | F65: 4029 | G65: 2539 | H65: =+H12 -> 5727 | I65: =+I12 -> 6046
A66: Adjustments to reconcile net income to net cash provided (used) by operations:
A67: Depreciation | B67: 606 | C67: 649 | D67: 706 | E67: 747 | F67: 705 | G67: 721 | H67: 744 | I67: 717
A68: Deferred income taxes | B68: -113 | C68: -80 | D68: -273 | E68: 647 | F68: 34 | G68: -380 | H68: -385 | I68: -650
A69: Stock-based compensation | B69: 191 | C69: 236 | D69: 215 | E69: 218 | F69: 325 | G69: 429 | H69: 611 | I69: 638
A70: Amortization, impairment and other | B70: 43 | C70: 13 | D70: 10 | E70: 27 | F70: 15 | G70: 398 | H70: 53 | I70: 123
A71: Net foreign currency adjustments | B71: 424 | C71: 98 | D71: -117 | E71: -99 | F71: 233 | G71: 23 | H71: -138 | I71: -26
A72: Changes in certain working capital components and other assets and liabilities:
A73: (Increase) decrease in accounts receivable | B73: -216 | C73: 60 | D73: -426 | E73: 187 | F73: -270 | G73: 1239 | H73: -1606 | I73: -504
A74: (Increase) decrease in inventories | B74: -621 | C74: -590 | D74: -231 | E74: -255 | F74: -490 | G74: -1854 | H74: 507 | I74: -1676
A75: (Increase) decrease in prepaid expenses, operating lease right-of-use assets and other current and non-current assets | B75: -144 | C75: -161 | D75: -120 | E75: 35 | F75: -203 | G75: -654 | H75: -182 | I75: -845
A76: Increase (decrease) in accounts payable, accrued liabilities, operating lease liabilities and other current and non-current liabilities | B76: 1237 | C76: -889 | D76: -364 | E76: 1515 | F76: 1525 | G76: 24 | H76: 1326 | I76: 1365
A77: Cash provided (used) by operations | B77: 4680 | C77: 3096 | D77: 3640 | E77: 4955 | F77: 5903 | G77: 2485 | H77: =+SUM(H65:H76) -> 6657 | I77: =+SUM(I65:I76) -> 5188
A78: Cash provided (used) by investing activities:
A79: Purchases of short-term investments | B79: -4936 | C79: -5367 | D79: -5928 | E79: -4783 | F79: -2937 | G79: -2426 | H79: -9961 | I79: -12913
A80: Maturities of short-term investments | B80: 3655 | C80: 2924 | D80: 3623 | E80: 3613 | F80: 1715 | G80: 74 | H80: 4236 | I80: 8199
A81: Sales of short-term investments | B81: 2216 | C81: 2386 | D81: 2423 | E81: 2496 | F81: 2072 | G81: 2379 | H81: 2449 | I81: 3967
A82: Investments in reverse repurchase agreements | B82: -150 | C82: 150 | D82: 0 | E82: 0 | F82: 0 | G82: 0 | H82: 0 | I82: 0
A83: Additions to property, plant and equipment | B83: -963 | C83: -1143 | D83: -1105 | E83: -1028 | F83: -1119 | G83: -1086 | H83: -695 | I83: -758
A84: Disposals of property,plant and equipment | B84: 3 | C84: 10 | D84: 13 | E84: 0 | F84: 0 | G84: 0
A85: Other investing activities | B85: 0 | C85: 6 | D85: -34 | E85: -22 | F85: 5 | G85: 31 | H85: 171 | I85: -19
A86: Cash provided (used) by investing activities | B86: =+SUM(B79:B85) -> -175 | C86: -1034 | D86: =+SUM(D79:D85) -> -1008 | E86: 276 | F86: -264 | G86: -1028 | H86: -3800 | I86: -1524
A87: Cash provided (used) by financing activities:
A88: Proceeds from borrowings, net of debt issuance costs | B88: 0 | C88: 981 | D88: 1482 | E88: — | F88: — | G88: 6134 | H88: 0 | I88: 0
A89: Long-term debt repayments | B89: -7 | C89: -106 | D89: -44 | E89: 0 | F89: 0 | G89: 0
A90: Increase (decrease) in notes payable, net | B90: -63 | C90: -67 | D90: 327 | E90: 13 | F90: -325 | G90: 49 | H90: -52 | I90: 15
A91: Repayment of borrowings | B91: -19 | C91: -7 | D91: -17 | E91: 0 | F91: 0 | G91: 0 | H91: -197 | I91: 0
A92: Proceeds from exercise of stock options and other stock issuances | B92: 514 | C92: 507 | D92: 489 | E92: 733 | F92: 700 | G92: 885 | H92: 1172 | I92: 1151
A93: Excess tax benefits from share-based arrangements | B93: 218 | C93: 281 | D93: 177 | E93: 0 | F93: 0 | G93: 0
A94: Repurchase of common stock | B94: -2534 | C94: -3238 | D94: -3223 | E94: -4254 | F94: -4286 | G94: -3067 | H94: -608 | I94: -4014
A95: Dividends — common and preferred | B95: -899 | C95: -1022 | D95: -1133 | E95: -1243 | F95: -1332 | G95: -1452 | H95: -1638 | I95: -1837
A96: Other financing activities | B96: 0 | C96: 0 | D96: 0 | E96: -84 | F96: -50 | G96: -58 | H96: -136 | I96: -151
A97: Cash provided (used) by financing activities | B97: =+SUM(B88:B96) -> -2790 | C97: -2671 | D97: -1942 | E97: =+SUM(E88:E96) -> -4835 | F97: =+SUM(F88:F96) -> -5293 | G97: =+SUM(G88:G96) -> 2491 | H97: =+SUM(H88:H96) -> -1459 | I97: =+SUM(I88:I96) -> -4836
A98: Effect of exchange rate changes on cash and equivalents | B98: -83 | C98: -105 | D98: -20 | E98: 45 | F98: -129 | G98: -66 | H98: 143 | I98: -143
A99: Net increase (decrease) in cash and equivalents | B99: =+B77+B86+B97+B98 -> 1632 | C99: -714 | D99: 670 | E99: =+E77+E86+E97+E98 -> 441 | F99: =+F77+F86+F97+F98 -> 217 | G99: =+G77+G86+G97+G98 -> 3882 | H99: =+H77+H86+H97+H98 -> 1541 | I99: =+I77+I86+I97+I98 -> -1315
A100: Cash and equivalents, beginning of year | B100: 2220 | C100: 3852 | D100: 3138 | E100: 3808 | F100: 4249 | G100: 4466 | H100: 8348 | I100: =+H101 -> 9889
A101: CASH AND EQUIVALENTS, END OF YEAR | B101: =+B99+B100 -> 3852 | C101: =+C99+C100 -> 3138 | D101: 3808 | E101: =+E99+E100 -> 4249 | F101: =+F99+F100 -> 4466 | G101: =+G99+G100 -> 8348 | H101: =+H99+H100 -> 9889 | I101: =+I99+I100 -> 8574
A102: Check (cash at eop - cash in balance sheet) | B102: =+B101-B25 -> 0 | C102: 0 | D102: 0 | E102: 0 | F102: 0 | G102: 0 | H102: 0 | I102: =+I101-I25 -> 0
A103: Supplemental disclosure of cash flow information:
A104: Cash paid during the year for:
A105: Interest, net of capitalized interest | B105: 53 | C105: 70 | D105: 98 | E105: 125 | F105: 153 | G105: 140 | H105: 293 | I105: 290
A106: Income taxes | B106: 1262 | C106: 748 | D106: 703 | E106: 529 | F106: 757 | G106: 1028 | H106: 1177 | I106: 1231
A107: Non-cash additions to property, plant and equipment | B107: 206 | C107: 252 | D107: 266 | E107: 294 | F107: 160 | G107: 121 | H107: 179 | I107: 160
A108: Dividends declared and not paid | B108: 240 | C108: 271 | D108: 300 | E108: 320 | F108: 347 | G108: 385 | H108: 438 | I108: 480
A110: Segmental Breakdowns
A111: Revenue:
A112: North America | B112: =+SUM(B113:B115) -> 13740 | C112: 14764 | D112: 15216 | E112: 14855 | F112: 15902 | G112: 14484 | H112: 17179 | I112: =+SUM(I113:I115) -> 18353
A113: Footwear | B113: 8506 | C113: 9299 | D113: 9684 | E113: 9322 | F113: 10045 | G113: 9329 | H113: 11644 | I113: 12228
A114: Apparel | B114: 4410 | C114: 4746 | D114: 4886 | E114: 4938 | F114: 5260 | G114: 4639 | H114: 5028 | I114: 5492
A115: Equipment | B115: 824 | C115: 719 | D115: 646 | E115: 595 | F115: 597 | G115: 516 | H115: 507 | I115: 633
A116: Europe, Middle East & Africa | B116: =+SUM(B117:B119) -> 11024 | C116: =+SUM(C117:C119) -> 7568 | D116: =+SUM(D117:D119) -> 7970 | E116: =+SUM(E117:E119) -> 9242 | F116: =+SUM(F117:F119) -> 9812 | G116: =+SUM(G117:G119) -> 9347 | H116: =+SUM(H117:H119) -> 11456 | I116: =+SUM(I117:I119) -> 12479
A117: Footwear | B117: 7344 | C117: 5043 | D117: 5192 | E117: 5875 | F117: 6293 | G117: 5892 | H117: 6970 | I117: 7388
A118: Apparel | B118: 3072 | C118: 2149 | D118: 2395 | E118: 2940 | F118: 3087 | G118: 3053 | H118: 3996 | I118: 4527
A119: Equipment | B119: 608 | C119: 376 | D119: 383 | E119: 427 | F119: 432 | G119: 402 | H119: 490 | I119: 564
A120: Greater China | B120: =+SUM(B121:B123) -> 3067 | C120: =+SUM(C121:C123) -> 3785 | D120: =+SUM(D121:D123) -> 4237 | E120: =+SUM(E121:E123) -> 5134 | F120: =+SUM(F121:F123) -> 6208 | G120: =+SUM(G121:G123) -> 6679 | H120: =+SUM(H121:H123) -> 8290 | I120: =+SUM(I121:I123) -> 7547
A121: Footwear | B121: 2016 | C121: 2599 | D121: 2920 | E121: 3496 | F121: 4262 | G121: 4635 | H121: 5748 | I121: 5416
A122: Apparel | B122: 925 | C122: 1055 | D122: 1188 | E122: 1508 | F122: 1808 | G122: 1896 | H122: 2347 | I122: 1938
A123: Equipment | B123: 126 | C123: 131 | D123: 129 | E123: 130 | F123: 138 | G123: 148 | H123: 195 | I123: 193
A124: Asia Pacific & Latin America | B124: =+SUM(B125:B127) -> 755 | C124: =+SUM(C125:C127) -> 4317 | D124: =+SUM(D125:D127) -> 4737 | E124: =+SUM(E125:E127) -> 5166 | F124: =+SUM(F125:F127) -> 5254 | G124: =+SUM(G125:G127) -> 5028 | H124: =+SUM(H125:H127) -> 5343 | I124: =+SUM(I125:I127) -> 5955
A125: Footwear | B125: 452 | C125: 2930 | D125: 3285 | E125: 3575 | F125: 3622 | G125: 3449 | H125: 3659 | I125: 4111
A126: Apparel | B126: 230 | C126: 1117 | D126: 1185 | E126: 1347 | F126: 1395 | G126: 1365 | H126: 1494 | I126: 1610
A127: Equipment | B127: 73 | C127: 270 | D127: 267 | E127: 244 | F127: 237 | G127: 214 | H127: 190 | I127: 234
A128: Global Brand Divisions | B128: 115 | C128: 73 | D128: 73 | E128: 88 | F128: 42 | G128: 30 | H128: 25 | I128: 102
A129: TOTAL NIKE BRAND | B129: =+B112+B116+B120+B124+B128 -> 28701 | C129: 30507 | D129: 32233 | E129: 34485 | F129: 37218 | G129: 35568 | H129: 42293 | I129: 44436
A130: Converse | B130: 1982 | C130: 1955 | D130: 2042 | E130: 1886 | F130: 1906 | G130: 1846 | H130: 2205 | I130: 2346
A131: Corporate | B131: -82 | C131: -86 | D131: 75 | E131: 26 | F131: -7 | G131: -11 | H131: 40 | I131: -72
A132: TOTAL NIKE, INC. REVENUES | B132: =+SUM(B129:B131) -> 30601 | C132: 32376 | D132: 34350 | E132: 36397 | F132: 39117 | G132: 37403 | H132: 44538 | I132: =+SUM(I129:I131) -> 46710
A133: Check | B133: =+B132-B2 -> 0 | C133: =+C132-C2 -> 0 | D133: 0 | E133: =+E132-E2 -> 0 | F133: 0 | G133: 0 | H133: =+H132-H2 -> 0 | I133: 0
A134: EBIT:
A135: North America | B135: 3645 | C135: 3763 | D135: 3875 | E135: 3600 | F135: 3925 | G135: 2899 | H135: 5089 | I135: 5114
A136: Europe, Middle East & Africa | B136: 2342 | C136: 1787 | D136: 1507 | E136: 1587 | F136: 1995 | G136: 1541 | H136: 2435 | I136: 3293
A137: Greater China | B137: 993 | C137: 1372 | D137: 1507 | E137: 1807 | F137: 2376 | G137: 2490 | H137: 3243 | I137: 2365
A138: Asia Pacific & Latin America | B138: 100 | C138: 1002 | D138: 980 | E138: 1189 | F138: 1323 | G138: 1184 | H138: 1530 | I138: 1896
A139: Global Brand Divisions | B139: -2267 | C139: -2596 | D139: -2677 | E139: -2658 | F139: -3262 | G139: -3468 | H139: -3656 | I139: -4262
A140: TOTAL NIKE BRAND | B140: =+SUM(B135:B139) -> 4813 | C140: 5328 | D140: 5192 | E140: 5525 | F140: 6357 | G140: 4646 | H140: 8641 | I140: 8406
A141: Converse | B141: 517 | C141: 487 | D141: 477 | E141: 310 | F141: 303 | G141: 297 | H141: 543 | I141: 669
A142: Corporate | B142: -1097 | C142: -1173 | D142: -724 | E142: -1456 | F142: -1810 | G142: -1967 | H142: -2261 | I142: -2219
A143: TOTAL NIKE, INC. EBIT | B143: =+SUM(B140:B142) -> 4233 | C143: 4642 | D143: 4945 | E143: 4379 | F143: 4850 | G143: 2976 | H143: 6923 | I143: =+SUM(I140:I142) -> 6856
A144: Check | B144: =+B143-B10-B8 -> 0 | C144: =+C143-C10-C8 -> 0 | D144: =+D143-D10-D8 -> 0 | E144: =+E143-E10-E8 -> 0 | F144: =+F143-F10-F8 -> 0 | G144: =+G143-G10-G8 -> 0 | H144: =+H143-H10-H8 -> 0 | I144: =+I143-I10-I8 -> 0
A148: Notes:
A149: due to change in segmentation in 2017, the 2015 segmentation numbers are obtained through the following
A150: "Western Europe" "Central Europe" and "Emerging Markets" segments were combined to create the new "Europe,Middle East, and Africa" segment number for 2015
A151: The "Japan" segment number is reflected under the new "Asia Pacific & Latin America" segment for 2015
